fUSD/lending_fUSD_20260331
["ID","MTS","AMOUNT","RATE_DAILY","PERIOD"]
[419157278,1774961454843,-1037.76201207,0.000232,2]
[419157279,1774961454852,-725.0,0.00023246,10]
[419157280,1774961454861,-151.99,0.00023288,2]
[419157281,1774961454871,-980.4755,0.000233,37]
[419157282,1774961454882,-1372.79,0.00023484,2]
[419157283,1774961454891,-250.0,0.00023485,5]
[419157284,1774961454901,-207.89,0.00023552,120]
[419157285,1774961454910,-152.0,0.00023557,6]
[419157286,1774961454920,-950.0,0.00023562,2]
[419157287,1774961454929,-430.55013538,0.00023587,2]
[419157288,1774961454939,-258.73832185,0.0002366,2]
[419157289,1774961454948,-1115.0,0.00023869,2]
[419157290,1774961454958,-727.61,0.00023877,30]
[419157291,1774961454968,-152.0,0.00023915,7]
[419157292,1774961454977,-725.0,0.00023921,11]
[419157293,1774961454987,-1030.13031672,0.00024,2]
[419157294,1774961454996,-3600.0,0.00024,2]
[419157295,1774961455005,-1245.47553395,0.00024,2]
[419157296,1774961455015,-1000.0,0.00024,24]
[419157297,1774961455024,-1571.0,0.00024094,3]
[419157298,1774961455034,-1050.0,0.0002411,2]
[419157299,1774961455047,-425.47227776,0.0002421,2]
[419157300,1774961455056,-3727.7329559,0.0002421,2]
[419157301,1774961455066,-152.0,0.00024272,8]
[419157302,1774961455075,-1000.0,0.00024494,7]
[419157303,1774961455084,-1124.78872323,0.000245,2]
[419157304,1774961455094,-166.58008287,0.0002455,15]
[419157305,1774961455103,-725.0,0.00024597,11]
[419157306,1774961455112,-1282.0787,0.000246,42]
[419157307,1774961455122,-152.0,0.00024629,9]
[419157308,1774961455131,-375.05908342,0.0002463,2]
[419157309,1774961455141,-159.24861889,0.0002463,2]
[419157310,1774961455151,-169.70486546,0.0002465,2]
[419157311,1774961455160,-1037.90374812,0.00024658,2]
[419157312,1774961455170,-170.706749,0.00024658,2]
[419157313,1774961455180,-170.706749,0.00024658,2]
[419157314,1774961455190,-170.706749,0.00024658,2]
[419157315,1774961455199,-170.706749,0.00024658,2]
[419157316,1774961455209,-170.706749,0.00024658,2]
[419157317,1774961455219,-170.706749,0.00024658,2]
[419157318,1774961455228,-170.706749,0.00024658,2]
[419157319,1774961455238,-170.706749,0.00024658,2]
[419157320,1774961455248,-170.706749,0.00024658,2]
[419157321,1774961455257,-170.706749,0.00024658,2]
[419157322,1774961455267,-170.706749,0.00024658,2]
[419157323,1774961455276,-170.706749,0.00024658,2]
[419157324,1774961455286,-170.706749,0.00024658,2]
[419157325,1774961455296,-170.706749,0.00024658,2]
[419157326,1774961455305,-170.706749,0.00024658,2]
[419157327,1774961455315,-170.706749,0.00024658,2]
[419157328,1774961455324,-170.706749,0.00024658,2]
[419157329,1774961455334,-170.706749,0.00024658,2]
[419157330,1774961455343,-170.706749,0.00024658,2]
[419157331,1774961455353,-170.706745,0.00024658,2]
[419157332,1774961455362,-151.0,0.00024658,2]
[419157333,1774961455371,-164.409541,0.00024658,2]
[419157334,1774961455381,-1000.0,0.00024658,2]
[419157335,1774961455390,-877.43,0.00024658,2]
[419157336,1774961455400,-159.309746,0.00024658,2]
[419157337,1774961455409,-159.309746,0.00024658,2]
[419157338,1774961455419,-159.309746,0.00024658,2]
[419157339,1774961455428,-159.309746,0.00024658,2]
[419157340,1774961455439,-159.309746,0.00024658,2]
[419157341,1774961455449,-159.309746,0.00024658,2]
[419157342,1774961455460,-159.309746,0.00024658,2]
[419157343,1774961455471,-159.309746,0.00024658,2]
[419157344,1774961455482,-159.309746,0.00024658,2]
[419157345,1774961455494,-159.309746,0.00024658,2]
[419157346,1774961455504,-159.309746,0.00024658,2]
[419157347,1774961455515,-159.309746,0.00024658,2]
[419157348,1774961455526,-159.309746,0.00024658,2]
[419157349,1774961455536,-159.309746,0.00024658,2]
[419157350,1774961455547,-159.309746,0.00024658,2]
[419157352,1774961455560,-159.309746,0.00024658,2]
[419157353,1774961455569,-159.309746,0.00024658,2]
[419157354,1774961455579,-159.309746,0.00024658,2]
[419157355,1774961455588,-159.309746,0.00024658,2]
[419157356,1774961455600,-159.309752,0.00024658,2]
[419157357,1774961455611,-150.0,0.00024658,2]
[419157358,1774961455621,-360.98,0.00024658,2]
[419157359,1774961455632,-500.0,0.00024733,2]
[419157360,1774961455643,-249.00000099,0.00024734,2]
[419157361,1774961455652,-825.0,0.00024855,60]
[419157362,1774961455663,-500.0,0.00024899,2]
[419157363,1774961455672,-500.0,0.00024899,2]
[419157364,1774961455682,-500.0,0.00024899,2]
[419157365,1774961455693,-424.15095925,0.00024899,2]
[419157366,1774961455703,-6632.4292913,0.000249,2]
[419157367,1774961455730,-322.94797957,0.00022302,7]
[419157368,1774961455743,-1277.05202043,0.00022302,7]
[419157369,1774961455753,-8921.08424471,0.000249,2]
[419157370,1774961455777,-176.30167223,0.000159,2]
[419157371,1774961455788,-454.30229697,0.000249,2]
[419157373,1774961456105,-468.0,0.00017808,2]
[419157374,1774961456115,-504.888341,0.0002,2]
[419157375,1774961456125,-930.11095391,0.00021502,10]
[419157376,1774961456211,-735.88904609,0.00021502,10]
[419157377,1774961456221,-688.36845391,0.00021988,2]
[419157378,1774961456234,-616.29,0.00021988,2]
[419157379,1774961456254,-4567.23734142,0.00021988,2]
[419157380,1774961456265,-1600.0,0.00024494,7]
[419157381,1774961456275,-55107.41393277,0.000249,2]
[419157382,1774961456295,-3972.69895729,0.000249,2]
[419157440,1774961782535,-595.0,0.00013111,2]
[419157442,1774962054801,-589.0,0.00013111,2]
[419157446,1774962322321,-150.0,0.00012723,2]
[419157447,1774962322343,-84.0,0.00012723,2]
[419157448,1774962337869,-66.0,0.00012723,2]
[419157449,1774962337894,-150.0,0.00012723,2]
[419157450,1774962337916,-150.0,0.00012723,2]
[419157451,1774962337940,-150.0,0.00012723,2]
[419157452,1774962337963,-150.0,0.00012723,2]
[419157453,1774962337986,-150.0,0.00012723,2]
[419157454,1774962338009,-150.0,0.00012723,2]
[419157455,1774962338032,-34.0,0.00012723,2]
[419157456,1774962354521,-116.0,0.00012723,2]
[419157457,1774962354545,-150.0,0.00012723,2]
[419157458,1774962354568,-150.0,0.00012723,2]
[419157459,1774962354591,-150.0,0.00012925,2]
[419157460,1774962354614,-115.0,0.00012925,2]
[419157461,1774962444679,-35.0,0.00012925,2]
[419157462,1774962444702,-150.0,0.00012959,2]
[419157463,1774962444727,-9.48433809,0.00013006,2]
[419157465,1774962448093,-140.51566191,0.00013006,2]
[419157466,1774962448115,-150.0,0.00013006,2]
[419157467,1774962448138,-150.0,0.00013006,2]
[419157468,1774962448160,-583.0,0.00013111,2]
[419157469,1774962448183,-150.0,0.00013127,2]
[419157470,1774962448206,-150.0,0.00013127,2]
[419157471,1774962448228,-150.0,0.00013195,2]
[419157472,1774962448249,-150.0,0.00013289,2]
[419157473,1774962448270,-150.0,0.00013289,2]
[419157474,1774962448292,-150.0,0.00013289,2]
[419157475,1774962448315,-150.0,0.00013329,2]
[419157476,1774962448336,-150.0,0.00013329,2]
[419157478,1774962448358,-150.0,0.0001343,2]
[419157479,1774962448380,-150.0,0.0001343,2]
[419157480,1774962448403,-150.0,0.0001343,2]
[419157481,1774962448425,-150.0,0.00013531,2]
[419157482,1774962448453,-150.0,0.00013531,2]
[419157483,1774962448475,-150.0,0.00013572,2]
[419157484,1774962448498,-150.0,0.00013572,2]
[419157485,1774962448519,-150.0,0.00013572,2]
[419157486,1774962448541,-181.48949012,0.0001365,2]
[419157487,1774962448564,-150.0,0.00013666,2]
[419157488,1774962448591,-150.0,0.00013733,2]
[419157489,1774962448614,-150.0,0.00013733,2]
[419157490,1774962448635,-583.0,0.00013787,2]
[419157491,1774962448656,-2500.0,0.00013833,2]
[419157492,1774962448678,-300.0,0.00013844,2]
[419157493,1774962448700,-150.0,0.00013854,2]
[419157494,1774962448721,-150.0,0.00013854,2]
[419157495,1774962448742,-150.0,0.00013854,2]
[419157496,1774962448764,-767.74579272,0.00013856,2]
[419157497,1774962448837,-1689.04489563,0.00013856,2]
[419157502,1774962548122,-43.20931165,0.00013856,2]
[419157503,1774962548145,-195.0,0.00013867,2]
[419157504,1774962548166,-1256.896,0.00013879,2]
[419157505,1774962548186,-150.0,0.00013901,2]
[419157506,1774962548208,-195.0,0.00013914,2]
[419157507,1774962548231,-150.0,0.00013935,2]
[419157508,1774962548253,-150.0,0.00013935,2]
[419157509,1774962548274,-1200.0,0.00014001,2]
[419157510,1774962548296,-1374.21028412,0.00014002,2]
[419157511,1774962548317,-169.1749748,0.00014073,2]
[419157512,1774962548338,-150.0,0.00014137,2]
[419157513,1774962548361,-240.20283738,0.00014137,2]
[419157514,1774962548382,-252.34735011,0.00014137,2]
[419157515,1774962548402,-150.0,0.00014137,2]
[419157516,1774962548422,-150.0,0.00014137,2]
[419157517,1774962548444,-250.84090287,0.00014137,2]
[419157518,1774962548466,-150.0,0.00014137,2]
[419157519,1774962548487,-150.0,0.00014137,2]
[419157520,1774962548510,-150.0,0.00014137,2]
[419157521,1774962548532,-233.15071008,0.00014137,2]
[419157522,1774962548554,-200.0,0.00014154,2]
[419157523,1774962548575,-151.0,0.00014154,2]
[419157524,1774962548597,-151.0,0.00014154,2]
[419157525,1774962548619,-151.0,0.00014154,2]
[419157526,1774962548643,-151.0,0.00014154,2]
[419157527,1774962548664,-151.0,0.00014154,2]
[419157528,1774962548686,-5581.9367904,0.00014161,2]
[419157529,1774962548707,-150.0,0.00014161,2]
[419157530,1774962548727,-611.77934941,0.00014161,2]
[419157531,1774962549141,-236.15033595,0.00014161,2]
[419157532,1774962549168,-269.86634292,0.00014161,2]
[419157533,1774962549190,-203.36088634,0.00014161,2]
[419157534,1774962549213,-8340.82673932,0.00014162,2]
[419157535,1774962583381,309.74468283,0.000125,2]
[419157536,1774962609878,1332.57656157,9.5e-05,3]
[419157543,1774962632324,-353.32,9.5e-05,3]
[419157544,1774962632336,-3828.73050867,9.5e-05,3]
[419157548,1774962632703,-374.79373491,0.0001,2]
[419157551,1774962632726,-225.34609699,0.00013901,2]
[419157552,1774962632736,-7355.8615,0.00014062,2]
[419157553,1774962632746,-300.0,0.0001416,2]
[419157554,1774962632755,-1169.0,0.0001416,2]
[419157555,1774962632765,-11141.98955799,0.00014161,2]
[419157556,1774962632774,-3020.20576443,0.00014161,2]
[419157558,1774962632783,-45769.59954888,0.00014162,2]
[419157560,1774962632795,-19307.13563452,0.00014162,2]
[419157563,1774962632806,-43261.11339149,0.00014162,2]
[419157571,1774962632869,-993.25000001,0.00014162,2]
[419157574,1774962638358,-500.0,0.00013111,2]
[419157947,1774962642470,-71.0,0.00013111,2]
[419157948,1774962642479,-571.0,0.00013787,2]
[419157949,1774962642488,-1812.74819787,0.00014162,2]
[419157950,1774962642499,-13584.52373215,0.00014162,2]
[419157951,1774962642510,-5194.36297898,0.00014162,2]
[419158071,1774962643731,-11298.50818926,0.00014162,2]
[419158187,1774962646564,-410.4306605,0.00014162,2]
[419158188,1774962646673,-1006.2589854,0.00014162,2]
[419158274,1774962902421,-816.43,9.297e-05,2]
[419158275,1774962902444,-207.57,0.00010226,2]
[419158276,1774962980638,-599.99,0.0001002,2]
[419158277,1774962980662,-42.43,0.00010226,2]
[419158278,1774962980687,-357.58,0.00011022,2]
[419158279,1774962997013,-243.62271831,0.00010123,2]
[419158280,1774962997038,-242.42,0.00011022,2]
[419158281,1774962997061,-513.95728169,0.00011022,2]
[419158282,1774963018945,-367.0,0.00011022,2]
[419158286,1774963076926,-253.5,0.00010583,2]
[419158287,1774963076949,-640.23461797,0.00011022,2]
[419158288,1774963076971,-106.26538203,0.00011022,2]
[419158289,1774963081837,-143.73461797,0.00011022,2]
[419158290,1774963081861,-331.98449094,0.00011243,2]
[419158291,1774963081890,-178.12,0.00011464,2]
[419158292,1774963081915,-182.80572961,0.00011967,2]
[419158294,1774963087098,161.90522655,0.00010583,2]
[419158295,1774963153927,-250.0,0.00012124,2]
[419158299,1774963327679,-330.50682274,0.00012999,2]
[419158300,1774963327705,-250.0,0.00013,2]
[419158301,1774963327729,-167.75871712,0.00013,2]
[419158305,1774963365959,-560.0,0.00013111,2]
[419158306,1774963365983,-219.0,0.00013787,2]
[419158307,1774963535139,-341.0,0.00013787,2]
[419158308,1774963535160,-162.16,0.00013908,2]
[419158309,1774963535182,-300.0,0.00014029,2]
[419158310,1774963535204,-300.0,0.00014029,2]
[419158311,1774963535227,-972.09155852,0.00014029,2]
[419158312,1774963632088,-664.12870044,0.0001393,2]
[419158313,1774963645781,-3090.6285305,0.0001392,2]
[419158314,1774963645806,-335308.92799984,0.0001393,2]
[419158315,1774963648148,-429.60712338,0.0001393,2]
[419158320,1774963750127,-449.66685143,0.00013111,2]
[419158323,1774963831458,-99.33314857,0.00013111,2]
[419158324,1774963831468,-346.924985,0.00013787,2]
[419158325,1774963831480,-202.075015,0.00013787,2]
[419158326,1774963831489,-272.12792,0.00013929,2]
[419158327,1774963831513,-987.37848985,0.00013929,2]
[419158328,1774963831523,-150.0,0.00013929,2]
[419158329,1774963831533,-198.23274744,0.00013929,2]
[419158330,1774963831544,-500.0,0.00013929,2]
[419158331,1774963831554,-344.58256245,0.00013929,2]
[419158332,1774963831564,-165.14278835,0.00013929,2]
[419158333,1774963831573,-500.0,0.00013929,2]
[419158334,1774963831582,-500.0,0.00013929,2]
[419158335,1774963831592,-500.0,0.00013929,2]
[419158336,1774963831602,-322.00979238,0.00013929,2]
[419158337,1774963831611,-500.0,0.00013929,2]
[419158338,1774963831620,-229.21218676,0.00013929,2]
[419158339,1774963831630,-623.29744454,0.00013929,2]
[419158340,1774963831639,-117557.03746178,0.0001393,2]
[419158341,1774963831652,-56604.26465039,0.0001393,2]
[419158342,1774963831663,-108465.62537186,0.0001393,2]
[419158343,1774963831676,-1254.41808677,0.0001393,2]
[419158344,1774963831691,-1795.3333,0.0001393,2]
[419158345,1774963831711,-1697.37309032,0.0001393,2]
[419158346,1774963831737,-265.84703492,0.0001393,2]
[419158352,1774963837522,-563.94852852,0.0001393,2]
[419158353,1774963837616,-147141.55549001,0.0001393,2]
[419158354,1774963837632,-363.98041957,0.0001393,2]
[419158355,1774963837743,-8052.99277437,0.0001393,2]
[419158356,1774963837904,-348.01441186,0.0001393,2]
[419158357,1774963837915,-252.9257169,0.0001393,2]
[419158574,1774963840422,-3538.80133069,0.0001393,2]
[419158586,1774963842718,-375887.87091475,0.0001393,2]
[419158587,1774963842990,-3726.14162389,0.0001393,2]
[419158588,1774963843101,-1180.49804783,0.0001393,2]
[419158602,1774963849002,-500.0,0.00013929,2]
[419158603,1774963849011,-2339.78693757,0.0001393,2]
[419158604,1774963849033,-189.44000496,0.00013929,2]
[419158605,1774963849044,-273.49438389,0.0001393,2]
[419158606,1774963849062,-397.51054204,0.0001393,2]
[419158607,1774963860464,161.25,7.405e-05,2]
[419158621,1774964835124,-185.0401704,0.000124,5]
[419158622,1774964835251,-269.52906928,0.000124,5]
[419158623,1774964846556,-1404.62610113,0.000124,5]
[419158625,1774964946078,-319.17874889,0.000123,5]
[419158626,1774964947073,-3208.63494687,0.000123,5]
[419158627,1774964957104,-146.18630424,0.000123,5]
[419158628,1774964957128,-250.0,0.00013,2]
[419158629,1774964957149,-2038.87,0.00013011,2]
[419158630,1774964957171,-500.0,0.00013032,2]
[419158631,1774964957191,-200.0,0.00013036,2]
[419158632,1774964957212,-1852.42,0.00013039,2]
[419158633,1774964957236,-485.3246213,0.00013111,2]
[419158668,1774965032999,-60.6753787,0.00013111,2]
[419158669,1774965033009,-150.0,0.00013452,2]
[419158670,1774965033018,-300.0,0.00013452,2]
[419158671,1774965033028,-1200.0,0.00013452,2]
[419158672,1774965033037,-6456.69141016,0.00013453,2]
[419158673,1774965033046,-2136.65880011,0.00013453,2]
[419158674,1774965033059,-2863.34119989,0.00013453,2]
[419158675,1774965033068,-5000.0,0.00013453,2]
[419158676,1774965033078,-166.66,0.00013699,2]
[419158677,1774965033088,-1005.517,0.00013699,2]
[419158678,1774965033098,-10278.92958881,0.0001373,2]
[419158679,1774965033108,-51825.72268929,0.0001373,2]
[419158685,1774965040187,-3451.94947151,0.0001373,2]
[419158686,1774965040299,-43260.2141392,0.0001373,2]
[419158687,1774965040309,-500.0,0.00013773,2]
[419158688,1774965040318,-500.0,0.00013773,2]
[419158689,1774965040328,-500.0,0.00013773,2]
[419158690,1774965040338,-500.0,0.00013773,2]
[419158691,1774965040347,-500.0,0.00013773,2]
[419158692,1774965040356,-500.44761252,0.00013773,2]
[419158693,1774965040366,-500.0,0.00013773,2]
[419158694,1774965040377,-500.0,0.00013773,2]
[419158695,1774965040386,-501.98943819,0.00013773,2]
[419158696,1774965040396,-500.0,0.00013773,2]
[419158697,1774965040406,-597.2563213,0.00013773,2]
[419158698,1774965040415,-389.0016983,0.00013773,2]
[419158699,1774965040424,-546.0,0.00013787,2]
[419158700,1774965040434,-173.0,0.00013796,2]
[419158701,1774965040444,-309.0,0.00013799,2]
[419158702,1774965040453,-166.08637647,0.00013799,2]
[419158704,1774965040463,-1000.0,0.000138,2]
[419158706,1774965040473,-1000.0,0.000138,3]
[419158708,1774965040482,-1000.0,0.000138,4]
[419158711,1774965040492,-24786.0727753,0.000138,2]
[419158713,1774965040501,-160.61710734,0.00013822,2]
[419158715,1774965040511,-200.0,0.00013822,2]
[419158717,1774965040520,-151.0,0.00013822,2]
[419158719,1774965040531,-151.0,0.00013822,2]
[419158721,1774965040541,-151.0,0.00013822,2]
[419158723,1774965040550,-151.0,0.00013822,2]
[419158725,1774965040560,-500.0,0.00013829,2]
[419158727,1774965040570,-500.0,0.00013829,2]
[419158729,1774965040579,-528.41630183,0.00013829,2]
[419158731,1774965040589,-500.0,0.0001383,2]
[419158734,1774965040598,-166.66,0.00013836,2]
[419158737,1774965040608,-300.16908337,0.0001386,2]
[419158740,1774965040618,-500.0,0.0001386,2]
[419158743,1774965040627,-500.0,0.0001386,2]
[419158746,1774965040637,-300.0,0.0001386,2]
[419158749,1774965040646,-195.0,0.0001386,2]
[419158752,1774965040656,-1240.89033492,0.0001386,2]
[419158754,1774965040665,-261.0,0.00013865,2]
[419158756,1774965040674,-310.71,0.00013873,2]
[419158759,1774965040684,-258.00108804,0.00013969,2]
[419158761,1774965040694,-249.4230985,0.0001397,2]
[419158763,1774965040703,-300.0,0.0001397,2]
[419158765,1774965040713,-300.0,0.0001397,2]
[419158767,1774965040722,-300.0,0.0001397,2]
[419158769,1774965040732,-2500.0,0.0001397,2]
[419158771,1774965040742,-2500.0,0.0001397,2]
[419158773,1774965040751,-150.0508053,0.0001397,2]
[419158775,1774965040760,-200.30341779,0.0001397,2]
[419158777,1774965040770,-592.63878333,0.00013973,2]
[419158779,1774965040779,-166.66,0.00013973,2]
[419158781,1774965040790,-500.0,0.00013973,2]
[419158783,1774965040800,-10278.92958879,0.0001398,2]
[419158785,1774965040810,-166.66,0.0001411,2]
[419158787,1774965040819,-310.71,0.00014147,2]
[419158789,1774965040829,-152.5282217,0.00014168,2]
[419158791,1774965040838,-300.0,0.000142,2]
[419158793,1774965040848,-10278.92958879,0.00014229,2]
[419158795,1774965040858,-166.66,0.00014247,2]
[419158797,1774965040867,-208.46,0.00014257,2]
[419158799,1774965040877,-500.0,0.00014261,2]
[419158801,1774965040887,-434.38836186,0.00014261,2]
[419158803,1774965040896,-184.18,0.00014284,3]
[419158805,1774965040906,-3240.0,0.00014297,2]
[419158807,1774965040916,-500.0,0.00014321,2]
[419158809,1774965040926,-500.0,0.00014321,2]
[419158811,1774965040936,-500.0,0.00014321,2]
[419158812,1774965040946,-1000.0,0.00014321,2]
[419158813,1774965040956,-500.0,0.00014321,2]
[419158814,1774965040965,-216.24645974,0.0001437,2]
[419158815,1774965040975,-166.66,0.00014384,2]
[419158816,1774965040984,-1500.0,0.00014391,2]
[419158817,1774965040994,-150.0,0.000144,2]
[419158818,1774965041003,-150.0,0.000144,2]
[419158819,1774965041013,-150.0,0.000144,2]
[419158820,1774965041023,-150.0,0.000144,2]
[419158821,1774965041033,-150.0,0.000144,2]
[419158822,1774965041044,-150.0,0.000144,2]
[419158824,1774965041056,-150.0,0.000144,2]
[419158825,1774965041066,-150.0,0.000144,2]
[419158826,1774965041075,-150.0,0.000144,2]
[419158827,1774965041086,-150.0,0.000144,2]
[419158828,1774965041095,-159.31,0.00014401,2]
[419158830,1774965041106,-200.0,0.00014404,2]
[419158831,1774965041115,-310.71,0.00014421,2]
[419158832,1774965041124,-195.0,0.00014422,2]
[419158833,1774965041134,-195.0,0.00014422,2]
[419158834,1774965041144,-2354.39192702,0.00014422,2]
[419158835,1774965041155,-546.0,0.00014462,3]
[419158836,1774965041165,-2000.0,0.00014468,2]
[419158837,1774965041174,-10278.92958879,0.00014479,2]
[419158838,1774965041185,-2000.0,0.000145,2]
[419158839,1774965041194,-1800.0,0.000145,2]
[419158840,1774965041215,-150.0,0.000145,2]
[419158841,1774965041225,-150.99,0.00014504,2]
[419158842,1774965041235,-351.27,0.00014504,2]
[419158843,1774965041245,-14482.63,0.00014504,2]
[419158844,1774965041257,-9999.99,0.00014504,2]
[419158845,1774965041267,-9999.99,0.00014504,2]
[419158846,1774965041276,-299.99,0.00014504,2]
[419158847,1774965041286,-4999.99,0.00014504,2]
[419158848,1774965041297,-499.99,0.00014504,2]
[419158849,1774965041307,-22931.52,0.00014504,2]
[419158850,1774965041317,-9999.99,0.00014504,2]
[419158851,1774965041327,-150.0,0.00014533,2]
[419158852,1774965041336,-150.0,0.00014542,2]
[419158853,1774965041346,-150.0,0.00014545,2]
[419158854,1774965041356,-150.0,0.00014545,2]
[419158855,1774965041366,-255.0,0.00014568,2]
[419158856,1774965041375,-357.2823536,0.00014573,2]
[419158857,1774965041385,-150.0,0.000146,2]
[419158858,1774965041395,-150.0,0.000146,2]
[419158859,1774965041409,-150.0,0.000146,2]
[419158860,1774965041420,-150.0,0.00014667,2]
[419158861,1774965041431,-150.0,0.00014667,2]
[419158862,1774965041441,-150.0,0.00014691,2]
[419158863,1774965041450,-150.0,0.00014691,2]
[419158864,1774965041460,-310.71,0.00014695,2]
[419158865,1774965041469,-150.0,0.000147,2]
[419158866,1774965041479,-10278.92958879,0.00014728,2]
[419158867,1774965041489,-287.0,0.00014746,2]
[419158868,1774965041499,-2182.88,0.00014761,2]
[419158869,1774965041510,-150.0,0.000148,2]
[419158870,1774965041520,-150.0,0.000148,2]
[419158871,1774965041530,-150.0,0.000148,2]
[419158872,1774965041540,-150.0,0.000148,2]
[419158873,1774965041551,-150.0,0.000148,2]
[419158874,1774965041561,-161.25,0.00014809,2]
[419158875,1774965041571,-150.0,0.00014836,2]
[419158876,1774965041581,-150.0,0.00014836,2]
[419158877,1774965041592,-166.66,0.0001489,2]
[419158878,1774965041602,-150.0,0.000149,2]
[419158879,1774965041612,-150.0,0.00014933,2]
[419158880,1774965041623,-150.0,0.00014933,2]
[419158881,1774965041634,-310.75027033,0.00014968,2]
[419158882,1774965041645,-10278.92958879,0.00014978,2]
[419158883,1774965041656,-150.0,0.00014982,2]
[419158884,1774965041666,-150.0,0.00014982,2]
[419158885,1774965041677,-150.0,0.00015,2]
[419158886,1774965041687,-150.0,0.00015,2]
[419158887,1774965041698,-300.0,0.00015,2]
[419158888,1774965041709,-150.0,0.00015067,2]
[419158889,1774965041719,-150.0,0.000151,2]
[419158890,1774965041729,-150.0,0.00015127,2]
[419158891,1774965041739,-150.0,0.00015127,2]
[419158892,1774965041749,-546.0,0.00015138,3]
[419158893,1774965041759,-287.689995,0.00015157,7]
[419158894,1774965041768,-366.315259,0.00015167,7]
[419158895,1774965041778,-160.0,0.00015167,7]
[419158896,1774965041788,-225.78679,0.00015167,7]
[419158897,1774965041798,-291.57358,0.00015167,7]
[419158898,1774965041808,-324.460286,0.00015167,7]
[419158899,1774965041817,-200.105568,0.00015167,7]
[419158900,1774965041827,-256.601131,0.0001519,7]
[419158901,1774965041836,-150.0,0.000152,2]
[419158902,1774965041845,-150.0,0.000152,2]
[419158903,1774965041855,-150.0,0.000152,2]
[419158904,1774965041865,-150.0,0.000152,2]
[419158905,1774965041876,-150.0,0.000152,2]
[419158906,1774965041885,-150.0,0.000152,2]
[419158907,1774965041895,-150.0,0.000152,2]
[419158908,1774965041905,-3870.48,0.00015205,2]
[419158909,1774965041914,-10278.92958879,0.00015227,2]
[419158910,1774965041924,-150.0,0.00015273,2]
[419158911,1774965041933,-150.0,0.00015273,2]
[419158912,1774965041943,-150.0,0.000153,2]
[419158913,1774965041953,-150.0,0.00015333,2]
[419158914,1774965041963,-222.96972885,0.00015373,2]
[419158915,1774965041972,-166.66,0.00015382,2]
[419158916,1774965041982,-150.0,0.000154,2]
[419158917,1774965041991,-150.0,0.000154,2]
[419158918,1774965042001,-150.0,0.00015418,2]
[419158919,1774965042010,-150.0,0.00015418,2]
[419158920,1774965042020,-468.0,0.00015451,2]
[419158921,1774965042034,-150.0,0.00015467,2]
[419158922,1774965042044,-150.0,0.00015467,2]
[419158923,1774965042054,-10278.92958879,0.00015477,2]
[419158924,1774965042065,-1973.0,0.000155,3]
[419158925,1774965042075,-150.0,0.000155,2]
[419158926,1774965042084,-150.0,0.00015564,2]
[419158927,1774965042095,-150.0,0.00015564,2]
[419158928,1774965042107,-150.0,0.000156,2]
[419158929,1774965042116,-150.0,0.000156,2]
[419158930,1774965042126,-150.0,0.000156,2]
[419158931,1774965042136,-150.0,0.000156,2]
[419158932,1774965042146,-150.0,0.000156,2]
[419158933,1774965042155,-1839.31581312,0.00015633,2]
[419158934,1774965042165,-239.39561019,0.00015667,2]
[419158935,1774965042175,-150.0,0.000157,2]
[419158936,1774965042184,-168.0,0.00015705,2]